bitfinex/quotes_SOLUSD_20250204
["timestamp","ask_amount","ask_price","bid_price","bid_amount"]
[1738649412899,48.04106881,205.85,205.84,0.063]
[1738649413111,48.04106881,205.85,205.75,0.063]
[1738649413112,0.12549,205.84,205.75,0.063]
[1738649413280,4.86,205.76,205.75,0.063]
[1738649413600,32.90138237,205.76,205.75,0.063]
[1738649413987,20.0,205.73,205.66,0.063]
[1738649414176,28.04155479,205.72,205.66,0.063]
[1738649414897,27.12986992,205.67,205.66,0.063]
[1738649415300,32.90372531,205.67,205.66,0.063]
[1738649415498,31.99196992,205.67,205.66,0.063]
[1738649416300,20.9119733,205.69,205.66,0.063]
[1738649416301,27.12986992,205.69,205.66,0.063]
[1738649416509,27.12986992,205.74,205.66,27.19286992]
[1738649416887,27.12986992,205.72,205.66,0.063]
[1738649418719,49.06221411,205.73,205.66,0.063]
[1738649419079,44.20141411,205.7,205.66,0.063]
[1738649419280,49.06291411,205.7,205.66,0.063]
[1738649419497,44.20141411,205.68,205.66,0.063]
[1738649419696,0.91185391,205.67,205.66,0.063]
[1738649420095,64.20141411,205.66,205.61,0.063]
[1738649420289,88.40282822,205.62,205.49,49.06771411]
[1738649420500,44.20141411,205.55,205.48,11.3769]
[1738649420703,44.20141411,205.55,205.49,13.41184853]
[1738649420904,44.20141411,205.55,205.48,11.3769]
[1738649421208,44.20141411,205.55,205.46,44.20141411]
[1738649421389,44.20141411,205.53,205.46,44.20141411]
[1738649421591,44.20141411,205.5,205.44,1.21160405]
[1738649421785,44.20141411,205.5,205.43,4.8676]
[1738649421988,44.20141411,205.54,205.46,44.20141411]
[1738649422185,44.20141411,205.54,205.47,13.41184853]
[1738649422422,44.20141411,205.52,205.44,45.44203644]
[1738649422594,44.20141411,205.49,205.42,44.20141411]
[1738649422788,44.20141411,205.49,205.4,44.26441411]
[1738649423105,44.20141411,205.47,205.4,44.26441411]
[1738649423430,44.20141411,205.47,205.4,0.063]
[1738649423431,49.06831411,205.47,205.4,0.063]
[1738649423593,44.20141411,205.43,205.4,0.063]
[1738649423995,44.20141411,205.41,205.4,0.063]
[1738649424526,44.20141411,205.45,205.4,0.063]
[1738649424695,2.8232,205.51,205.43,44.20141411]
[1738649425021,20.0,205.49,205.43,44.20141411]
[1738649425390,44.20141411,205.48,205.41,44.20141411]
[1738649425592,44.20141411,205.44,205.4,0.063]
[1738649425807,44.20141411,205.42,205.4,0.063]
[1738649427009,20.0,205.41,205.4,0.063]
[1738649427799,0.91293749,205.49,205.4,44.26441411]
[1738649428118,44.20141411,205.52,205.44,44.20141411]
[1738649428493,44.20141411,205.54,205.46,44.20141411]
[1738649428694,0.91267932,205.55,205.48,44.20141411]
[1738649428927,20.0,205.53,205.48,44.20141411]
[1738649429113,44.20141411,205.54,205.45,13.41184853]
[1738649429319,44.20141411,205.52,205.44,62.48076264]
[1738649429633,45.11393096,205.54,205.46,44.20141411]
[1738649430693,44.20141411,205.47,205.4,49.13271411]
[1738649431395,44.20141411,205.55,205.47,13.41184853]
[1738649431589,45.11380584,205.55,205.48,44.20141411]
[1738649431824,45.11380584,205.55,205.46,44.20141411]
[1738649432502,49.97880584,205.55,205.46,44.20141411]
[1738649433015,44.20141411,205.53,205.46,44.20141411]
[1738649433708,44.20141411,205.53,205.45,4.8673]
[1738649433904,44.20141411,205.53,205.46,13.41184853]
[1738649434805,47.71710755,205.58,205.5,44.20141411]
[1738649435010,59.56401411,205.62,205.55,44.20141411]
[1738649435193,54.70051411,205.62,205.55,13.41184853]
[1738649435397,2.884,205.64,205.5,13.41184853]
[1738649435398,2.884,205.64,205.57,44.20141411]
[1738649435700,44.20141411,205.63,205.56,13.41184853]
[1738649435918,44.20141411,205.61,205.53,44.20141411]
[1738649436259,44.20141411,205.63,205.55,44.20141411]
[1738649436418,0.063,205.55,205.48,44.20141411]
[1738649436796,0.063,205.55,205.49,13.41184853]
[1738649437215,44.20141411,205.54,205.46,44.23141411]
[1738649438300,44.20141411,205.54,205.47,13.41184853]
[1738649439025,44.20141411,205.52,205.46,0.03]
[1738649439705,44.20141411,205.48,205.46,0.03]
[1738649440614,49.06801411,205.48,205.46,0.03]
[1738649441430,1.03821082,205.47,205.46,0.03]
[1738649442212,1.03821082,205.47,205.4,0.063]
[1738649442414,45.11436987,205.48,205.4,0.063]
[1738649442727,4.8669,205.47,205.4,0.063]
[1738649442929,44.20141411,205.46,205.4,0.063]
[1738649443135,45.11424806,205.46,205.4,0.063]
[1738649443323,4.8665,205.49,205.42,44.20141411]
[1738649443937,5.77913299,205.49,205.41,13.41184853]
[1738649444252,44.20141411,205.46,205.4,0.063]
[1738649444442,49.06821411,205.48,205.4,44.26441411]
[1738649444622,49.06771411,205.5,205.42,44.20141411]
[1738649445230,81.1,205.54,205.47,13.41184853]
[1738649445425,0.063,205.55,205.49,13.41184853]
[1738649445629,0.063,205.55,205.52,44.20141411]
[1738649446344,0.063,205.55,205.54,57.61326264]
[1738649446554,0.063,205.55,205.48,4.8665]
[1738649446751,44.20141411,205.54,205.46,15.4658]
[1738649447054,0.063,205.55,205.47,57.61326264]
[1738649447254,0.063,205.55,205.51,44.20141411]
[1738649447561,0.063,205.55,205.49,44.20141411]
[1738649447742,0.063,205.55,205.49,42.87841411]
[1738649447921,0.063,205.55,205.46,15.4658]
[1738649447922,0.063,205.55,205.54,44.20141411]
[1738649448259,0.063,205.55,205.54,57.61326264]
[1738649448561,0.063,205.55,205.54,13.41184853]
[1738649448727,0.063,205.55,205.54,57.61326264]
[1738649449353,0.063,205.55,205.5,44.20141411]
[1738649449556,44.20141411,205.54,205.46,54.83031411]
[1738649449925,0.063,205.55,205.47,13.41184853]
[1738649450139,20.0,205.53,205.47,13.41184853]
[1738649450315,20.0,205.51,205.47,13.41184853]
[1738649450522,44.20141411,205.52,205.46,0.03]
[1738649450733,4.8659,205.51,205.46,0.03]
[1738649451021,49.06711411,205.52,205.46,0.03]
[1738649451542,44.20141411,205.5,205.46,0.03]
[1738649452636,49.06761411,205.5,205.46,0.03]
[1738649453161,44.20141411,205.48,205.46,0.03]
[1738649454252,7.3661,205.51,205.46,0.03]
[1738649455558,44.20141411,205.54,205.46,44.23141411]
[1738649455719,0.063,205.55,205.46,44.23141411]
[1738649455720,0.063,205.55,205.5,44.20141411]
[1738649455919,0.063,205.55,205.54,44.20141411]
[1738649456147,0.063,205.55,205.54,57.61326264]
[1738649456726,0.063,205.55,205.54,62.60395264]
[1738649456928,0.063,205.55,205.54,63.08720581]
[1738649457121,51.42831411,205.68,205.55,0.12549]
[1738649457340,51.42831411,205.68,205.6,44.20141411]
[1738649457840,51.42831411,205.68,205.59,13.41184853]
[1738649458241,20.0,205.63,205.58,44.20141411]
[1738649458768,20.0,205.57,205.5,44.20141411]
[1738649459046,4.8623,205.67,205.57,13.41184853]
[1738649459256,4.8618,205.69,205.62,13.41184853]
[1738649459557,20.0,205.65,205.59,44.20141411]
[1738649459853,44.20141411,205.6,205.52,54.20081411]
[1738649460049,44.20141411,205.58,205.52,9.9994]
[1738649460250,44.20141411,205.58,205.5,44.20141411]
[1738649460553,0.063,205.57,205.5,49.06741411]
[1738649460843,0.063,205.57,205.51,13.41184853]
[1738649461036,20.0,205.55,205.49,0.03]
[1738649461239,44.20141411,205.56,205.49,0.03]
[1738649462035,44.20141411,205.56,205.49,13.44184853]
[1738649463152,20.0,205.55,205.51,13.41184853]
[1738649463530,0.063,205.57,205.53,13.41184853]
[1738649463747,0.063,205.57,205.56,57.61326264]
[1738649463953,0.063,205.57,205.56,57.73875264]
[1738649464141,0.063,205.57,205.56,57.86424264]
[1738649464338,0.0001,205.57,205.56,78.60377898]
[1738649464532,3.64528619,205.68,205.58,0.12549]
[1738649464750,0.063,205.72,205.65,13.41184853]
[1738649464945,0.063,205.72,205.67,13.41184853]
[1738649465247,0.063,205.72,205.68,44.20141411]
[1738649465437,0.063,205.72,205.69,13.41184853]
[1738649466243,0.063,205.72,205.66,44.20141411]
[1738649466451,0.063,205.72,205.68,44.20141411]
[1738649466639,0.063,205.72,205.69,13.41184853]
[1738649468174,0.063,205.72,205.71,13.66282853]
[1738649468378,0.063,205.72,205.71,18.52402853]
[1738649468648,0.063,205.72,205.71,18.75463769]
[1738649468863,0.063,205.72,205.71,13.41184853]
[1738649469344,0.063,205.72,205.68,44.20141411]
[1738649469539,0.063,205.72,205.66,44.20141411]
[1738649469743,44.26441411,205.72,205.64,58.33401411]
[1738649470051,44.20141411,205.68,205.6,4.8637]
[1738649470254,44.20141411,205.66,205.59,54.11001411]
[1738649470456,44.20141411,205.7,205.61,44.20141411]
[1738649470632,44.26441411,205.72,205.64,44.20141411]
[1738649471174,20.0,205.69,205.65,13.41184853]
[1738649471544,44.26441411,205.72,205.65,13.41184853]
[1738649471856,0.063,205.72,205.69,13.41184853]
[1738649472555,0.063,205.72,205.71,13.53733853]
[1738649473240,44.26441411,205.72,205.63,44.20141411]
[1738649473449,44.20141411,205.7,205.63,49.06431411]
[1738649473764,44.20141411,205.7,205.64,13.41184853]
[1738649473953,0.063,205.72,205.59,54.11001411]
[1738649473954,44.20141411,205.68,205.59,54.11001411]
[1738649474162,44.20141411,205.64,205.59,9.9086]
[1738649474331,44.20141411,205.66,205.6,13.41184853]
[1738649475056,49.06341411,205.68,205.6,13.41184853]
[1738649475355,0.063,205.72,205.66,13.41184853]
[1738649475661,44.20141411,205.7,205.61,44.20141411]
[1738649475833,44.20141411,205.68,205.59,58.97381411]
[1738649476032,5.83557929,205.72,205.59,44.20141411]
[1738649476033,44.20141411,205.66,205.59,44.20141411]
[1738649476350,44.20141411,205.68,205.6,13.53733853]
[1738649476530,44.20141411,205.68,205.62,13.41184853]
[1738649477360,20.0,205.69,205.64,13.41184853]
[1738649478556,20.0,205.69,205.62,13.53733853]
[1738649478755,44.20141411,205.68,205.62,13.41184853]
[1738649478944,44.20141411,205.66,205.58,4.864]
[1738649479146,44.20141411,205.66,205.59,13.41184853]
[1738649479529,44.20141411,205.6,205.53,53.95881411]
[1738649479730,44.20141411,205.6,205.51,44.20141411]
[1738649479930,44.20141411,205.64,205.56,13.53733853]
[1738649480128,2.3592,205.67,205.62,13.41184853]
[1738649480439,51.28861411,205.73,205.64,13.41184853]
[1738649480636,51.28861411,205.73,205.64,18.27444853]
[1738649480835,20.0,205.7,205.64,18.27444853]
[1738649481035,51.28861411,205.73,205.64,18.27444853]
[1738649481335,51.28861411,205.73,205.64,13.41184853]
[1738649481652,51.28861411,205.73,205.64,18.27464853]
[1738649482461,0.063,205.76,205.71,62.47446264]
[1738649482760,44.26441411,205.72,205.59,58.62831411]
[1738649482963,44.20141411,205.68,205.59,58.62831411]
[1738649483163,44.20141411,205.7,205.62,13.53733853]
[1738649483855,44.20141411,205.7,205.62,18.40053853]
[1738649484060,44.20141411,205.7,205.62,13.41184853]
[1738649484935,44.20141411,205.66,205.57,44.23141411]
[1738649485648,44.20141411,205.66,205.58,13.41184853]
[1738649485961,49.06391411,205.66,205.58,13.41184853]
[1738649486157,2.1846,205.67,205.58,13.41184853]
[1738649486158,2.1846,205.67,205.61,44.20141411]
[1738649486456,44.26441411,205.72,205.64,13.41184853]
[1738649486772,0.063,205.72,205.66,13.41184853]
[1738649487751,20.063,205.72,205.68,13.41184853]
[1738649488064,0.063,205.72,205.7,13.41184853]
[1738649488231,0.063,205.72,205.71,58.22078196]
[1738649488667,0.063,205.76,205.72,13.53733853]
[1738649488837,0.063,205.76,205.75,57.73875264]
[1738649489872,0.063,205.76,205.75,57.86424264]
[1738649490041,0.063,205.76,205.75,62.72444264]
[1738649490367,0.063,205.76,205.75,62.59895264]
[1738649491055,0.063,205.76,205.71,44.20141411]
[1738649491275,44.26441411,205.76,205.69,44.20141411]
[1738649491442,44.26441411,205.76,205.68,10.5417]
[1738649491641,44.26441411,205.76,205.69,13.41184853]
[1738649491843,44.26441411,205.76,205.69,57.61326264]
[1738649492045,0.063,205.76,205.72,13.53733853]
[1738649492259,0.063,205.76,205.71,44.20141411]
[1738649492764,0.063,205.76,205.72,13.41184853]
[1738649494068,0.063,205.76,205.74,13.41184853]
[1738649495674,0.063,205.76,205.67,44.20141411]
[1738649495863,44.20141411,205.75,205.67,44.20141411]
[1738649496175,44.20141411,205.75,205.68,13.41184853]
[1738649496341,44.20141411,205.75,205.68,18.27364853]
[1738649496742,44.20141411,205.75,205.71,0.03]
[1738649497164,46.51361411,205.73,205.71,0.03]
[1738649498058,2.3122,205.73,205.71,0.03]
[1738649498344,0.063,205.76,205.72,13.41184853]
[1738649499265,0.063,205.76,205.75,57.86424264]
[1738649499579,4.758,205.85,205.75,57.73875264]
[1738649499754,4.758,205.85,205.77,44.20141411]
[1738649500173,44.20141411,205.86,205.78,13.41184853]
[1738649500342,49.05911411,205.86,205.78,13.41184853]
[1738649500672,44.20141411,205.84,205.76,13.41184853]
[1738649500879,44.20141411,205.82,205.76,13.41184853]
[1738649501056,44.20141411,205.8,205.73,5.66]
[1738649501257,44.20141411,205.78,205.73,5.66]
[1738649501668,44.20141411,205.76,205.73,5.66]
[1738649502362,44.20141411,205.74,205.71,0.03]
[1738649503792,44.20141411,205.76,205.71,0.03]
[1738649504075,46.40931411,205.84,205.76,13.41184853]
[1738649504381,2.2079,205.84,205.78,13.41184853]
[1738649504870,2.2079,205.84,205.79,44.20141411]
[1738649505746,51.26741411,205.84,205.78,13.41184853]
[1738649506473,46.40931411,205.84,205.78,13.41184853]
[1738649506675,44.20141411,205.86,205.79,44.20141411]
[1738649506855,44.20141411,205.86,205.78,18.27134853]
[1738649506856,2.3919,205.89,205.82,13.41184853]
[1738649507176,7.2489,205.89,205.82,13.41184853]
[1738649507472,44.20141411,205.88,205.82,13.41184853]
[1738649508175,44.20141411,205.88,205.81,44.20141411]
[1738649508373,44.20141411,205.83,205.76,13.6689]
[1738649508577,44.20141411,205.87,205.8,13.41184853]
[1738649508959,0.063,205.89,205.84,13.41184853]
[1738649509263,0.063,205.88,205.85,44.20141411]
[1738649509661,0.063,205.88,205.86,13.41184853]
[1738649509870,0.063,205.88,205.87,57.73875264]
[1738649510254,0.063,205.88,205.87,62.59615264]
[1738649510676,0.0001,205.89,205.88,14.66282853]
[1738649510861,0.063,205.93,205.92,13.53733853]
[1738649511059,0.063,205.93,205.92,57.73875264]
[1738649511874,0.063,205.93,205.92,57.61326264]
[1738649512279,0.063,205.93,205.88,44.20141411]
[1738649512469,44.20141411,205.92,205.87,9.5357]
[1738649512670,44.20141411,205.92,205.86,13.53733853]
[1738649512982,44.20141411,205.92,205.84,44.20141411]
[1738649513379,44.20141411,205.92,205.85,13.41184853]
[1738649514396,0.063,205.93,205.85,13.41184853]
[1738649514749,0.063,205.93,205.86,44.32690411]
[1738649514959,0.063,205.93,205.92,57.61326264]
[1738649515174,0.063,205.93,205.92,57.73875264]
[1738649515397,0.063,205.97,205.93,13.66282853]
[1738649515601,0.063,205.97,205.94,44.20141411]
[1738649515974,0.063,205.97,205.93,9.254]
[1738649516210,0.063,205.97,205.9,44.20141411]
[1738649516704,0.063,205.97,205.93,13.41184853]
[1738649516908,0.063,205.97,205.92,44.20141411]
[1738649517404,0.063,205.97,205.9,49.05801411]
[1738649517574,44.20141411,205.95,205.87,5.64]
[1738649517897,44.20141411,205.93,205.87,5.64]
[1738649518598,44.20141411,205.95,205.88,13.41184853]
[1738649518825,0.063,205.97,205.9,44.20141411]
[1738649519011,0.063,205.97,205.92,44.20141411]
[1738649519391,0.063,205.97,205.91,13.53733853]
[1738649519697,0.063,205.97,205.94,44.20141411]
[1738649520081,0.063,205.97,205.92,44.20141411]
[1738649520510,0.063,205.97,205.92,49.05741411]
[1738649520723,0.063,205.97,205.9,44.6815612]
[1738649520874,44.26441411,205.97,205.88,44.20141411]
[1738649521213,44.20141411,205.91,205.84,44.20141411]
[1738649521416,44.20141411,205.91,205.82,57.72671411]
[1738649521701,44.20141411,205.91,205.84,44.20141411]
[1738649521876,44.20141411,205.91,205.83,13.53733853]
[1738649522079,44.20141411,205.91,205.84,44.20141411]
[1738649522390,44.20141411,205.91,205.82,57.75671411]
[1738649522629,44.20141411,205.91,205.82,52.89821411]
[1738649522791,44.20141411,205.87,205.82,4.8884]
[1738649523117,44.20141411,205.85,205.82,0.03]
[1738649523684,44.20141411,205.87,205.82,0.03]
[1738649524104,44.20141411,205.89,205.82,4.8885]
[1738649524309,44.20141411,205.89,205.82,44.23141411]
[1738649524620,44.20141411,205.83,205.82,0.03]
[1738649525213,47.3615665,205.83,205.71,0.03]
[1738649525406,44.20141411,205.78,205.71,0.03]
[1738649525719,44.20141411,205.8,205.72,44.20141411]
[1738649526018,81.1,205.86,205.8,0.12549]
[1738649526198,2.3003,205.89,205.82,44.20141411]
[1738649526402,44.20141411,205.92,205.84,44.20141411]
[1738649526917,44.20141411,205.92,205.82,44.20141411]
[1738649527691,44.20141411,205.92,205.83,4.8583]
[1738649528609,44.20141411,205.92,205.82,44.20141411]
[1738649528610,20.0,205.89,205.82,44.20141411]
[1738649528801,44.20141411,205.86,205.78,44.20141411]
[1738649529111,44.20141411,205.88,205.8,44.32690411]
[1738649529319,44.20141411,205.9,205.81,13.41184853]
[1738649529519,44.20141411,205.88,205.8,44.20141411]
[1738649529698,44.20141411,205.9,205.8,49.06041411]
[1738649529894,44.20141411,205.9,205.81,13.53733853]
[1738649531291,44.20141411,205.86,205.78,49.06071411]
[1738649531809,44.20141411,205.86,205.79,13.41184853]
[1738649532823,44.20141411,205.86,205.8,4.859]
[1738649533024,44.20141411,205.9,205.81,13.53733853]
[1738649533232,44.20141411,205.9,205.83,13.41184853]
[1738649533722,44.20141411,205.88,205.81,0.03]
[1738649534111,44.20141411,205.9,205.83,13.41184853]
[1738649534626,44.20141411,205.88,205.81,0.03]
[1738649535004,44.20141411,205.9,205.83,13.41184853]
[1738649535329,44.20141411,205.92,205.84,44.20141411]
[1738649535628,0.063,205.93,205.88,44.20141411]
[1738649535808,0.063,205.93,205.92,57.61326264]
[1738649536198,0.063,205.97,205.93,13.66282853]
[1738649536418,0.063,205.97,205.96,57.73875264]
[1738649536930,0.063,205.97,205.96,62.59405264]
[1738649537797,0.063,205.97,205.94,49.05701411]
[1738649537995,0.063,205.97,205.92,44.20141411]
[1738649538201,0.063,205.97,205.9,44.20141411]
[1738649538719,0.063,205.97,205.91,13.53733853]
[1738649539226,0.063,205.97,205.92,44.20141411]
[1738649539433,0.063,205.97,205.96,44.20141411]
[1738649540116,0.063,205.97,205.94,44.20141411]
[1738649541115,0.063,205.97,205.94,49.05711411]
[1738649541424,0.063,205.97,205.96,44.20141411]
[1738649541810,0.063,205.97,205.96,57.73875264]
[1738649542722,0.03,206.04,205.97,13.66282853]
[1738649543032,0.03,206.04,206.03,4.8536]
[1738649545619,0.03,206.04,206.03,18.39093853]
[1738649545931,0.063,206.11,206.08,0.12549]
[1738649546119,0.063,206.11,206.1,57.73875264]
[1738649547039,0.063,206.11,206.1,62.59075264]
[1738649547714,0.063,206.11,206.1,62.94371353]
[1738649547915,0.063,206.11,206.1,62.59075264]
[1738649548311,0.0001,206.11,206.1,108.27055376]
[1738649548515,0.03,206.18,206.15,13.41184853]
[1738649548722,0.03,206.18,206.17,57.73875264]
[1738649549120,0.03,206.18,206.17,62.58905264]
[1738649552222,0.0001,206.2,206.18,0.12549]
[1738649552430,0.0001,206.2,206.19,44.6790665]
[1738649552659,0.0001,206.2,206.19,103.41781914]
[1738649552864,0.0001,206.2,206.19,103.06565675]
[1738649553158,0.0001,206.2,206.19,58.73875264]
[1738649553667,0.0001,206.2,206.19,63.58855264]
[1738649553966,0.0001,206.2,206.19,49.05121411]
[1738649554121,0.0001,206.2,206.18,4.8501]
[1738649554625,0.0001,206.2,206.19,44.20141411]
[1738649554847,0.0001,206.2,206.17,44.20141411]
[1738649555369,0.0001,206.2,206.15,44.20141411]
[1738649555523,0.0001,206.2,206.17,44.20141411]
[1738649555922,0.0001,206.2,206.19,44.20141411]
[1738649556220,0.0001,206.2,206.19,102.06565675]
[1738649556455,0.0001,206.2,206.19,103.06565675]
[1738649557343,0.0001,206.2,206.19,57.73875264]
[1738649557538,0.0001,206.2,206.19,62.58855264]
[1738649557845,0.0001,206.2,206.19,49.05121411]
[1738649558053,0.0001,206.2,206.18,4.88]
[1738649559327,0.0001,206.2,206.19,44.20141411]
[1738649560252,0.0001,206.2,206.19,57.73875264]
[1738649561355,0.0001,206.2,206.19,62.58855264]
[1738649561555,0.0001,206.2,206.19,107.91545675]
[1738649561727,0.03,206.24,206.2,13.66282853]
[1738649561926,0.03,206.24,206.23,57.73875264]
[1738649562132,2.1585,206.37,206.24,13.66282853]
[1738649562337,2.1585,206.37,206.25,44.20141411]
[1738649562931,46.35991411,206.37,206.25,44.20141411]
[1738649563125,46.35991411,206.37,206.25,57.86424264]
[1738649563330,2.1585,206.37,206.31,49.04841411]
[1738649566030,2.1585,206.37,206.31,44.20141411]
[1738649566227,44.20141411,206.35,206.27,44.20141411]
[1738649566452,44.20141411,206.33,206.25,49.04981411]
[1738649566655,44.20141411,206.35,206.25,44.20141411]
[1738649566968,2.1585,206.37,206.31,44.20141411]
[1738649567332,2.1585,206.37,206.33,44.20141411]
[1738649567556,13.4664,206.4,206.33,44.20141411]
[1738649567727,4.8449,206.4,206.33,44.20141411]
[1738649568130,5.75348362,206.4,206.33,44.20141411]
[1738649568349,5.75348362,206.4,206.3,4.8471]
[1738649568350,44.20141411,206.37,206.29,44.20141411]
[1738649568555,45.1102356,206.37,206.27,44.20141411]
[1738649568749,45.1102356,206.37,206.24,5.6]
[1738649568750,44.20141411,206.33,206.25,44.20141411]
[1738649568940,44.20141411,206.31,206.24,5.6]
[1738649569665,4.8473,206.3,206.24,5.6]
[1738649571165,49.04801411,206.33,206.24,5.6]
[1738649571415,49.04801411,206.33,206.25,44.20141411]
[1738649571550,49.95695554,206.33,206.25,44.20141411]
[1738649571750,49.04771411,206.35,206.27,44.20141411]
[1738649573377,14.02214143,206.39,206.23,44.20141411]
[1738649573378,44.20141411,206.31,206.23,44.20141411]
[1738649573540,44.20141411,206.33,206.25,44.20141411]
[1738649573742,49.04771411,206.35,206.27,44.20141411]
[1738649573935,49.04721411,206.37,206.29,44.20141411]
[1738649574155,49.95554415,206.39,206.31,44.20141411]
[1738649574470,0.063,206.4,206.35,44.20141411]
[1738649576683,0.063,206.4,206.35,49.04741411]
[1738649577157,0.063,206.4,206.35,44.20141411]
[1738649578053,0.063,206.4,206.35,49.04741411]
[1738649579691,0.063,206.4,206.33,44.20141411]
[1738649579854,44.20141411,206.39,206.31,49.04831411]
[1738649580198,0.063,206.4,206.31,49.04831411]
[1738649580358,0.063,206.4,206.33,44.20141411]
[1738649580552,0.063,206.4,206.35,44.20141411]
[1738649580760,0.063,206.4,206.33,44.20141411]
[1738649581183,0.97157562,206.4,206.31,44.20141411]
[1738649581358,44.20141411,206.39,206.31,44.20141411]
[1738649581756,4.8454,206.38,206.31,44.20141411]
[1738649582072,0.063,206.4,206.33,44.20141411]
[1738649582288,0.063,206.4,206.35,44.20141411]
[1738649582668,0.063,206.4,206.36,27.01757601]
[1738649583101,0.063,206.4,206.34,27.01757601]
[1738649583905,0.063,206.4,206.35,4.8461]
[1738649584194,0.063,206.4,206.38,27.01757601]
[1738649584561,0.063,206.4,206.39,13.53733853]
[1738649585166,0.063,206.41,206.4,0.12549]
[1738649585379,2.2824,206.53,206.42,0.12549]
[1738649585587,2.2824,206.53,206.48,27.01757601]
[1738649585968,27.01757601,206.53,206.46,27.01757601]
[1738649586365,27.01757601,206.51,206.43,27.01757601]
[1738649586566,27.01757601,206.47,206.39,27.01757601]
[1738649586770,27.01757601,206.45,206.38,4.8452]
[1738649586993,27.01757601,206.45,206.37,35.84637601]
[1738649587177,27.01757601,206.45,206.37,40.69187601]
[1738649587599,27.01757601,206.45,206.37,31.86307601]
[1738649587767,27.01757601,206.45,206.37,27.01757601]
[1738649587966,31.86147601,206.45,206.35,37.44347601]
[1738649588166,31.86147601,206.45,206.35,31.86347601]
[1738649588701,46.20806972,206.48,206.39,43.88916972]
[1738649588907,2.3189,206.48,206.41,43.88916972]
[1738649589101,2.3189,206.48,206.43,43.88916972]
[1738649589299,43.88916972,206.5,206.43,43.88916972]
[1738649589970,43.88916972,206.52,206.43,43.88916972]
[1738649590183,94.340728,245.41,206.51,43.88916972]
[1738649590184,43.88916972,206.58,206.51,43.88916972]
[1738649590388,43.88916972,206.58,206.47,13.41184853]
[1738649590389,2.2203,206.59,206.54,43.88916972]
[1738649590684,0.063,206.61,206.55,43.88916972]
[1738649591508,0.063,206.61,206.56,43.88916972]
[1738649591711,0.063,206.61,206.55,43.88916972]
[1738649592290,0.063,206.61,206.56,43.88916972]
[1738649592829,0.063,206.61,206.54,43.88916972]
[1738649592997,43.88916972,206.6,206.52,43.88916972]
[1738649593191,43.88916972,206.6,206.52,48.73116972]
[1738649593493,0.063,206.61,206.54,43.88916972]
[1738649594009,43.88916972,206.6,206.52,48.73116972]
[1738649594213,43.88916972,206.6,206.52,43.88916972]
[1738649594389,48.72946972,206.6,206.52,43.88916972]
[1738649594584,43.88916972,206.58,206.5,43.88916972]
[1738649595031,43.88916972,206.54,206.46,43.88916972]
[1738649595201,43.88916972,206.52,206.44,49.44916972]
[1738649595401,43.88916972,206.5,206.44,5.56]
[1738649595604,43.88916972,206.48,206.4,43.88916972]
[1738649595908,43.88916972,206.46,206.38,43.88916972]
[1738649596393,4.8437,206.45,206.38,43.88916972]
[1738649596896,43.88916972,206.42,206.34,43.88916972]
[1738649597228,43.88916972,206.46,206.38,43.88916972]
[1738649597727,52.87026972,206.5,206.42,43.88916972]
[1738649597929,8.9811,206.5,206.44,43.88916972]
[1738649598726,48.73136972,206.52,206.44,43.88916972]
[1738649600429,43.88916972,206.5,206.42,43.88916972]
[1738649600591,2.1437,206.53,206.46,43.88916972]
[1738649602198,2.1437,206.53,206.48,43.88916972]
[1738649603023,43.88916972,206.52,206.44,43.88916972]
[1738649603327,2.1437,206.53,206.43,10.4042]
[1738649603328,2.1437,206.53,206.48,43.88916972]
[1738649603627,0.063,206.53,206.5,43.88916972]
[1738649604531,0.063,206.53,206.5,48.73166972]
[1738649605099,0.063,206.53,206.5,43.88916972]
[1738649605408,0.063,206.53,206.5,48.73166972]
[1738649606629,0.063,206.53,206.5,43.88916972]
[1738649607302,0.063,206.53,206.5,48.73166972]
[1738649608126,0.063,206.53,206.5,43.88916972]
[1738649608425,0.063,206.53,206.48,43.88916972]
[1738649608743,43.88916972,206.52,206.44,43.88916972]
[1738649609038,43.88916972,206.48,206.4,43.88916972]
[1738649609992,46.15296972,206.48,206.4,43.88916972]
[1738649610228,46.15296972,206.48,206.4,48.73406972]